{"text_format":"1","workbook":"xlsx","n_sheets":7,"sheets":["Crew","Main","Status","Data","Type","Damage","Crew (2)"],"not_rendered":{"charts":0,"images":0,"macros":1,"external_links":0,"defined_names":4,"comments":0,"pivot_tables":0},"unopened":[],"bounds":{"document_bytes":16777216,"sheet_cells":100000,"rows_first":2000,"rows_last":500,"rows_between":2000,"halvings":0,"cell_chars":16384,"cell_head_chars":4096},"cells_cut":0,"cells_raw":0,"read":"whole","date_system":"1900"}

{"sheet":"Crew","index":0,"n_rows":34,"n_cols":16,"rows_kept":34,"cut":false,"hidden":false,"merged":[]}
[]
[null,null,"任務中",null,null,null,null,"入院中"]
[null,null,"操縦士","レーダー操作員","後方銃手","飛行整備士",null,"レーダー操作員","後方銃手","飛行整備士",null,"現在の階級"]
[null,"搭乗員数"]
[null,"負傷離脱ターン数",null,null,null,null,null,null,null,null,null,"＜褒彰＞","4ヶ月後","８ヶ月後","１２ヶ月後","通期"]
["履歴","エースの地位",null,null,null,null,null,null,null,null,null,"戦傷章",null,null,null,{"$f":"SUM(M6:O6)","v":0}]
[null,"経験ポイント  *1",0,null,null,null,null,null,null,null,null,"前線飛行章",null,null,null,{"$f":"SUM(M7:O7)","v":0}]
[null,"栄誉ポイント",null,null,null,null,null,null,null,null,null,"２級鉄十字章",null,null,null,{"$f":"SUM(M8:O8)","v":0}]
[null,"栄誉レベル",null,null,null,null,null,null,null,null,null,"１級鉄十字章",null,null,null,{"$f":"SUM(M9:O9)","v":0}]
["技能","照準Aim",null,null,null,null,null,null,null,null,null,{"$f":"B6","v":"エースの地位"},null,null,null,{"$f":"SUM(M10:O10)","v":0}]
[null,"空中機動A.C.M",null,null,null,null,null,null,null,null,null,"十字金章",null,null,null,{"$f":"SUM(M11:O11)","v":0}]
[null,"爆撃機ストリームB.S.",null,null,null,null,null,null,null,null,null,"騎士十字章",null,null,null,0]
[null,"電子機器保守E.M.",null,null,null,null,null,null,null,null,null,"柏葉付き",null,null,null,0]
[null,"慣熟Expert",null,null,null,null,null,null,null,null,null,"剣付き",null,null,null,0]
[null,"射撃Gunnery",null,null,null,null,null,null,null,null,null,"宝剣付き",null,null,null,0]
[null,"着陸Landing"]
[null,"統率力Leadership"]
[null,"航法Navigation",null,null,null,null,null,null,null,null,null,"＜その他＞"]
[null,"落下傘Parachute",null,null,null,null,null,null,null,null,null,"撃墜数",null,null,null,{"$f":"SUM(M19:O19)","v":0}]
[null,"レーダー操作R.O.",null,null,null,null,null,null,null,null,null,"損失機数",null,null,null,0]
[null,"斜め銃射撃S.M.",null,null,null,null,null,null,null,null,null,"モスキートの撃墜",null,null,null,0]
[null,"状況認識S.A.",null,null,null,null,null,null,null,null,null,"B-17の撃墜",null,null,null,0]
[null,"兵器保守W.M."]
[null,null,null,null,null,null,null,null,null,null,null,"＜昇進＞"]
[null,"He219使用可能時期",null,null,null,null,null,null,null,null,null,"判定"]
[null,"B-17迎撃任務"]
[null,null,null,null,"開始基地ゾーン",null,null,null,null,null,null,"＜勝利条件＞　爆撃機の撃墜数で判定"]
[null,"慣熟機種",null,null,"使用可能機種",null,null,null,null,null,null,"０～４","敗北"]
[null,"Bf110",null,null,null,null,null,null,null,null,null,"５～１０","引き分け"]
[null,"Do215/217",null,null,null,null,null,null,null,null,null,"１１～３０","限定的勝利"]
[null,"He219",null,null,null,"　　",null,null,null,null,null,"３１～６０","実質的勝利"]
[null,"Ju88",null,null,null,null,null,null,null,null,null,"６１以上","決定的勝利"]
[]
[null,"*1 曹長なら新規の搭乗員は４経験ポイントをもつ（潤滑能力）。"]

{"sheet":"Main","index":1,"n_rows":99,"n_cols":18,"rows_kept":99,"cut":false,"hidden":false,"merged":[[1,5,1,10]]}
["Pilot :","Berjisan","FightLine=",3,null,null,null,null,null,null,null,null,1,null,"Add Information"]
["Aircr. Type","DATE","Raid Target","Weather","Moon Status","Aircraft Targets",null,null,null,null,null,"Kills","Sortie #","Notes","Interception","RTB","Wound","Roll Number"]
[null,"Aug - 43",null,null,"Dark -1"]
[null,"Aug - 43",null,null,{"$f":"E3","v":"Dark -1"}]
[null,"Aug - 43",null,null,"Bright +1"]
[null,"Aug - 43",null,null,"Full Moon +2"]
[null,"Aug - 43",null,null,"Bright +1"]
[null,"Aug - 43",null,null,{"$f":"E7","v":"Bright +1"}]
[null,"Aug - 43",null,null,"Dark -1"]
[null,"Aug - 43",null,null,"No Moon -2"]
[null,"Sep - 43",null,null,"Dark -1"]
[null,"Sep - 43",null,null,{"$f":"E11","v":"Dark -1"}]
[null,"Sep - 43",null,null,"Bright +1"]
[null,"Sep - 43",null,null,"Full Moon +2"]
[null,"Sep - 43",null,null,"Bright +1"]
[null,"Sep - 43",null,null,{"$f":"E15","v":"Bright +1"}]
[null,"Sep - 43",null,null,"Dark -1"]
[null,"Sep - 43",null,null,"No Moon -2"]
[null,"Oct - 43",null,null,"Dark -1"]
[null,"Oct - 43",null,null,{"$f":"E19","v":"Dark -1"}]
[null,"Oct - 43",null,null,"Bright +1"]
[null,"Oct - 43",null,null,"Full Moon +2"]
[null,"Oct - 43",null,null,"Bright +1"]
[null,"Oct - 43",null,null,{"$f":"E23","v":"Bright +1"}]
[null,"Oct - 43",null,null,"Dark -1"]
[null,"Oct - 43",null,null,"No Moon -2"]
[null,"Nov - 43",null,null,"Dark -1"]
[null,"Nov - 43",null,null,{"$f":"E27","v":"Dark -1"}]
[null,"Nov - 43",null,null,"Bright +1"]
[null,"Nov - 43",null,null,"Full Moon +2"]
[null,"Nov - 43",null,null,"Bright +1"]
[null,"Nov - 43",null,null,{"$f":"E31","v":"Bright +1"}]
[null,"Nov - 43",null,null,"Dark -1"]
[null,"Nov - 43",null,null,"No Moon -2",null,null,null,null,null,null,null,null,"Promote ?"]
[null,"Dec - 43",null,null,"Dark -1"]
[null,"Dec - 43",null,null,{"$f":"E35","v":"Dark -1"}]
[null,"Dec - 43",null,null,"Bright +1"]
[null,"Dec - 43",null,null,"Full Moon +2"]
[null,"Dec - 43",null,null,"Bright +1"]
[null,"Dec - 43",null,null,{"$f":"E39","v":"Bright +1"}]
[null,"Dec - 43",null,null,"Dark -1"]
[null,"Dec - 43",null,null,"No Moon -2"]
[null,"Jan - 44",null,null,"Dark -1"]
[null,"Jan - 44",null,null,{"$f":"E43","v":"Dark -1"}]
[null,"Jan - 44",null,null,"Bright +1"]
[null,"Jan - 44",null,null,"Full Moon +2"]
[null,"Jan - 44",null,null,"Bright +1",null,null,null,null,null,null,null,null,"Jamming +1"]
[null,"Jan - 44",null,null,{"$f":"E47","v":"Bright +1"}]
[null,"Jan - 44",null,null,"Dark -1"]
[null,"Jan - 44",null,null,"No Moon -2"]
[null,"Feb - 44",null,null,"Dark -1"]
[null,"Feb - 44",null,null,{"$f":"E51","v":"Dark -1"}]
[null,"Feb - 44",null,null,"Bright +1"]
[null,"Feb - 44",null,null,"Full Moon +2"]
[null,"Feb - 44",null,null,"Bright +1"]
[null,"Feb - 44",null,null,{"$f":"E55","v":"Bright +1"}]
[null,"Feb - 44",null,null,"Dark -1"]
[null,"Feb - 44",null,null,"No Moon -2"]
[null,"Mar - 44",null,null,"Dark -1"]
[null,"Mar - 44",null,null,{"$f":"E59","v":"Dark -1"}]
[null,"Mar - 44",null,null,"Bright +1"]
[null,"Mar - 44",null,null,"Full Moon +2"]
[null,"Mar - 44",null,null,"Bright +1"]
[null,"Mar - 44",null,null,{"$f":"E63","v":"Bright +1"}]
[null,"Mar - 44",null,null,"Dark -1"]
[null,"Mar - 44",null,null,"No Moon -2",null,null,null,null,null,null,null,null,"Promote ?"]
[null,"Apr - 44",null,null,"Dark -1",null,null,null,null,null,null,null,null,"Intruder ?"]
[null,"Apr - 44",null,null,{"$f":"E67","v":"Dark -1"}]
[null,"Apr - 44",null,null,"Bright +1"]
[null,"Apr - 44",null,null,"Full Moon +2"]
[null,"Apr - 44",null,null,"Bright +1"]
[null,"Apr - 44",null,null,{"$f":"E71","v":"Bright +1"}]
[null,"Apr - 44",null,null,"Dark -1"]
[null,"Apr - 44",null,null,"No Moon -2",null,null,null,null,null,null,null,null,"Jamming +2"]
[null,"May - 44",null,null,"Dark -1"]
[null,"May - 44",null,null,{"$f":"E75","v":"Dark -1"}]
[null,"May - 44",null,null,"Bright +1"]
[null,"May - 44",null,null,"Full Moon +2"]
[null,"May - 44",null,null,"Bright +1"]
[null,"May - 44",null,null,{"$f":"E79","v":"Bright +1"}]
[null,"May - 44",null,null,"Dark -1"]
[null,"May - 44",null,null,"No Moon -2"]
[null,"Jun - 44",null,null,"Dark -1"]
[null,"Jun - 44",null,null,{"$f":"E83","v":"Dark -1"}]
[null,"Jun - 44",null,null,"Bright +1"]
[null,"Jun - 44",null,null,"Full Moon +2"]
[null,"Jun - 44",null,null,"Bright +1"]
[null,"Jun - 44",null,null,{"$f":"E87","v":"Bright +1"},null,null,null,null,null,null,null,null,"Jamming +3"]
[null,"Jun - 44",null,null,"Dark -1"]
[null,"Jun - 44",null,null,"No Moon -2"]
[null,"Jul - 44",null,null,"Dark -1"]
[null,"Jul - 44",null,null,{"$f":"E91","v":"Dark -1"}]
[null,"Jul - 44",null,null,"Bright +1"]
[null,"Jul - 44",null,null,"Full Moon +2"]
[null,"Jul - 44",null,null,"Bright +1"]
[null,"Jul - 44",null,null,{"$f":"E95","v":"Bright +1"}]
[null,"Jul - 44",null,null,"Dark -1"]
[null,"Jul - 44",null,null,"No Moon -2",null,null,null,null,null,null,null,null,"Promote ?"]
[null,null,null,null,null,null,null,null,null,null,"total",{"$f":"SUM(L3:L98)","v":0},null,null,null,null,null,{"$f":"SUM(R3:R98)","v":0}]

{"sheet":"Status","index":2,"n_rows":41,"n_cols":33,"rows_kept":41,"cut":false,"hidden":false,"merged":[]}
[null,null,null,null,null,null,null,null,null,null,null,null,null,null,null,0,null,null,null,null,null,null,null,null,null,null,null,null,null,null,null,null,2]
[]
[]
["自機","始の迎撃Box",null,null,null,null,null,"旋回前に機銃の選択をする *1 "]
["左翼","右翼","操縦系統","機体","燃料タンク","左エンジン","右エンジン","着陸装置","酸素装置","速力","操縦士","レーダー操作員","後方銃手","飛行整備士","機種アドレス／命中数／記録済"]
[null,null,null,null,null,null,null,null,null,null,null,null,null,null,null,"現在状況"]
[null,null,null,null,null,null,null,null,null,null,null,null,null,null,null,"被害（速力は初期値）"]
["レーダー数","主レーダー補正","副レーダー補正","追尾機器1補正","追尾機器2補正(H2S用)","警報機器(SA補正)","その他電子機器数","H2S探知装置位置",null,"幸運",null,null,null,null,null,"戦闘負傷"]
[null,null,null,null,null,null,null,null,"工場怠業",null,"予備部品欠乏","撃墜を目撃","欺瞞空襲","迎撃／旋回",null,{"$f":"P6","v":"現在状況"}]
[null,null,null,null,null,null,null,null,null,null,null,null,null,null,null,"結果"]
[]
["敵機",null,null,"戦闘タイプ",null,null,"機種アドレス",null,"目標番号",7]
[{"$f":"A5","v":"左翼"},{"$f":"B5","v":"右翼"},"操縦系統","機体","燃料タンク","エンジン１","エンジン２","エンジン３","エンジン４","速力","操縦士","レーダー操作員","後方銃手","火力","エンジン数"]
[null,null,null,null,null,null,null,null,null,null,null,null,null,null,null,{"$f":"P6","v":"現在状況"}]
[]
["射撃戦",null,null,null,null,null,null,"結果",null,null,null,"敵襲結果"]
["自機火力（現在）",null,null,"機銃選択*1"]
["前方兵器数",null,null,"射撃距離",null,null,null,"結果",null,null,null,"結果"]
["１番目の火力",null,null,"照準"]
["弾薬",null,null,"連続射撃"]
["給弾不良",null,null,"幻惑状態",null,null,null,"結果",null,null,null,"結果"]
["２番目の火力",null,null,"迎撃Box位置"]
["弾薬",null,null,"蛇行運動",null,null,null,"命中数入力"]
["給弾不良",null,null,null,null,null,null,"結果",null,null,null,"結果"]
["３番目の火力"]
["弾薬",null,null,"爆撃機ストリーム",null,null,null,"命中数入力"]
["給弾不良",null,null,null,null,null,null,"結果",null,null,null,"結果"]
["４番目の火力",null,null,"ACM"]
["弾薬"]
["給弾不良",null,null,null,null,null,null,"結果",null,null,null,"着陸結果"]
["後方機銃"]
["斜め銃の配置番号",null,null,null,null,null,null,null,null,null,null,"修理判断"]
["迎撃可能Box数"]
["兵器保守可能回数"]
[null,null,null,null,null,null,null,null,null,null,null,null,null,null,14198]
[{"$f":"A15-A14","v":0},{"$f":"B15-B14","v":0},0,0,0,0,0,0,0]
[]
[]
["*1　斜め銃攻撃の旋回には航続時間Boxが１つ必要になる為。"]
["乱数計測（調査用）",0]
["賽の目（調査用）"]

{"sheet":"Data","index":3,"n_rows":44,"n_cols":42,"rows_kept":44,"cut":false,"hidden":false,"merged":[]}
["Halifax","Berlin","good","Bf110F_4",null,"Aug - 43","Sep - 43","Oct - 43","Nov - 43","Dec - 43","Jan - 44","Feb - 44","Mar - 44","Apr - 44","May - 44","Jun - 44","Jul - 44",null,"前方","斜め","後方",null,null,null,null,null,null,"命中数",0,"銃装備","前方","前方","前方","前方",null,"賽の目","開始基地","使用可能機種",null,0,"少尉"]
["Halifax H2S","Bremen","poor","Bf110F_4a",2,"Bremen","Berlin","Bremen","Munich","Ruhr","Bremen","Munich","Ruhr","Bremen","Ruhr","France","France","距離","長距離",null,null,null,null,null,null,null,null,null,1,null,null,"後方","斜め","斜め",null,1,"Bremen","Bf110F_4、Do215B_5",null,1,"中尉","伍長"]
["Lancaster","Frankfurt","bad","Bf110F_4U1",3,"Bremen","Ruhr","Bremen","Ruhr","Berlin","Berlin","Frankfurt","Frankfurt","Bremen","Ruhr","France","Munich",null,"中距離","中距離","中距離",null,null,null,null,null,null,null,2,null,null,null,null,"後方",null,2,"Bremen","Bf110F_4、Do215B_5",null,2,"大尉","軍曹"]
["Lancaster H2S","French","socked in","Bf110G_4aR3",4,"Berlin","Ruhr","Frankfurt","Ruhr","Berlin","Berlin","Berlin","Frankfurt","Ruhr","Berlin","France","France",null,"短距離","短距離","短距離","<集中損傷＞",null,null,null,null,null,null,3,null,null,null,null,null,null,3,"Bremen","Bf110F_4",null,3,"少佐","曹長"]
["Stirling","Munich",null,"Bf110G_4bR3",5,"Munich","Berlin","Bremen","Berlin","Frankfurt","Bremen","Munich","Munich","Berlin","Ruhr","France","Munich",null,null,null,null,null,"目標",null,null,null,null,null,4,null,null,null,null,null,null,4,"Bremen","Ju88R_1",null,4,"中佐","准尉"]
["Stirling H2S","Ruhr",null,"Bf110G_4cR3",6,"Frankfurt","Munich","Bremen","Berlin","Berlin","Berlin","Berlin","Frankfurt","Munich","Ruhr","France","Munich","照準","左翼Pwing","左翼Pwing","機体Airflame","損傷","左翼Pwing","右翼Swing","機体Airflame","後方銃手",null,null,5,null,null,null,null,null,null,5,"French","Bf110F_4、Do215B_5"]
["Wellington","R",null,"Bf110G_4dR3",7,"Berlin","Bremen","Ruhr","Berlin","Berlin","Berlin","Berlin","Ruhr","Ruhr","Berlin","France","Bremen",null,"右翼Swing","右翼Swing","機体Airflame","左翼",1,0,0,0,null,null,"GP",null,null,null,null,null,null,6,"French","Bf110F_4、Do215B_5"]
["B-17","Cancelled",null,"Bf110G_4U1",8,"Bremen","Munich","Munich","Ruhr","Berlin","Berlin","Frankfurt","Munich","Berlin","Ruhr","Ruhr","Bremen",null,"機体Airflame",null,"機体Airflame","右翼",0,1,0,0,null,null,"GP+1",null,null,null,null,null,null,7,"French","Bf110F_4"]
["Mosq. II NF","FS",null,"Bf110G_4U5",9,"Frankfurt","Munich","Berlin","Frankfurt","Berlin","Berlin","Munich","Frankfurt","Munich","Ruhr","Ruhr","Munich",null,"後方銃手",null,null,"操縦",1,1,1,1,null,null,"DE",null,null,null,null,null,null,8,"Berlin","Bf110F_4"]
["Mosq. IX H2S",null,null,"Bf110G_4U6",10,"Berlin","Ruhr","Ruhr","Munich","Frankfurt","Berlin","Frankfurt","Berlin","Ruhr","Ruhr","France","Ruhr",null,null,null,"*wingの可能性を残す","機体",0,0,1,1,null,null,null,null,null,null,"効果と発動損傷値",null,null,9,"Berlin","Bf110F_4"]
["Mosq. XIX NF",null,null,"Do215B_5",11,"Munich","Bremen","Munich","Ruhr","Berlin","Berlin","Berlin","Ruhr","Ruhr","Ruhr","France","Ruhr","連続射撃","有",null,null,"エンジン",2,2,0,0,null,null,null,null,null,null,"１回のみ","累積",null,10,"Berlin","Bf110F_4a"]
[null,null,null,"Do217J_2",12,"Bremen","Berlin","Munich","Frankfurt","Bremen","Berlin","Munich","Berlin","Ruhr","Bremen","Frankfurt","France",null,null,null,null,"後方銃手",0,0,0,1,null,"部位（敵）","部位（自分）","No","4エンジン","2エンジン","ACM,蛇行運動なし","速度低下－３","発火・爆発",11,"Dutch","Ju88R_1"]
[null,null,null,"Do217N_1U1",null,null,null,null,null,null,null,null,null,null,null,null,null,null,null,null,null,"無作為",1,1,3,2,null,"左翼Pwing","左翼Pwing",1,null,null,null,null,null,12,"Dutch","Bf110F_4"]
[null,null,null,"Do217N_2R22",{"$f":"E2","v":2},"Stirling H2S","Stirling H2S","Stirling H2S","Lancaster","Lancaster H2S","Lancaster H2S","Lancaster H2S","Lancaster H2S","Mosq. II NF","Mosq. II NF","Mosq. XIX NF","Mosq. XIX NF",null,null,null,null,null,null,null,null,null,null,"右翼Swing","右翼Swing",2,null,null,null,null,null,13,"Munich","Bf110F_4、Ju88R_1"]
[null,null,null,"Do335A_6",{"$f":"E3","v":3},"Lancaster H2S","Lancaster H2S","Lancaster","Lancaster H2S","Lancaster","Lancaster","Lancaster","Lancaster H2S","Lancaster H2S","Lancaster","Lancaster","Halifax",null,null,null,null,null,null,null,null,null,null,"Control","Control",3,null,null,-2,null,null,14,"Dutch","Bf110F_4、Do215B_5、Ju88R_1"]
[null,null,null,"Do335B_2",4,"Stirling","Stirling","Stirling","Halifax","Lancaster","Halifax","Lancaster","Halifax H2S","Halifax H2S","Halifax H2S","Halifax","Halifax",null,null,"無作為命中修正",null,"＜無作為損傷＞",null,null,null,null,null,"Airframe","Airframe",4,null,null,null,null,null,15,"Dutch","Bf110F_4、Ju88R_1"]
[null,null,null,"He219A_0",5,"Halifax H2S","Halifax H2S","Halifax H2S","Halifax H2S","Halifax H2S","Halifax H2S","Halifax H2S","Lancaster","Lancaster","Lancaster H2S","Lancaster","Lancaster H2S",null,"長距離",-1,null,null,"目標",null,null,null,null,"Fuel Tank","Fuel Tank",5,null,null,null,null,"2d6",16,"Dutch","Ju88R_1"]
[null,null,null,"He219A_2",6,"Lancaster","Lancaster","Lancaster H2S","Lancaster","Lancaster","Lancaster","Lancaster","Lancaster","Lancaster","Lancaster","Lancaster","Lancaster",null,"中距離",0,null,"賽の目","左翼","右翼","機体","後方銃手",null,"Engine1","Engine1",6,"左外","左",-2,-1,null,17,"Munich","Bf110F_4、Do215B_5、Ju88R_1"]
[null,null,null,"He219A_5R1",7,"Wellington","Lancaster","Lancaster","Lancaster","Halifax","Lancaster","Lancaster","Lancaster","Lancaster","Lancaster","Lancaster H2S","Lancaster",null,"短距離",1,null,1,1,2,4,4,null,"Engine2","Engine2",7,"左内","右",-2,-1,null,18,"Munich","Bf110F_4"]
[null,null,null,"He219A_5R2",8,"Wellington","Halifax","Halifax","Halifax","Halifax","Halifax","Halifax","Halifax","Halifax","Halifax","Lancaster","Lancaster H2S",null,"蛇行運動",-1,null,2,1,2,4,4,null,"Engine3","LandingGear",8,"右内",null,null,-1,null,19,"Dutch","Ju88R_1"]
[null,null,null,"He219A_5R3",9,"Halifax","Wellington","Halifax H2S","Halifax H2S","Lancaster H2S","Lancaster H2S","Lancaster H2S","Lancaster H2S","Lancaster H2S","Lancaster H2S","Halifax","Lancaster",null,"射撃技能",1,"*2",3,1,2,4,4,null,"Engine4","Oxygen",9,"右外",null,null,-1,null,20,"Dutch","Bf110F_4、Do215B_5、Ju88R_1"]
[null,null,null,"He219A_5R4",10,"Stirling","Stirling","Wellington","Lancaster","Lancaster","Lancaster","Lancaster","Lancaster","Halifax","Lancaster","Halifax H2S","Halifax H2S",null,null,null,null,4,4,4,14,14,null,"Speed","Speed",10]
[null,null,null,"He219A_7R1",11,"Mosq. IX H2S","Mosq. IX H2S","Mosq. IX H2S","Mosq. IX H2S","Mosq. IX H2S","Mosq. IX H2S","Mosq. IX H2S","Mosq. IX H2S","Mosq. IX H2S","Mosq. IX H2S","Mosq. IX H2S","Mosq. IX H2S",null,"斜め銃＋短距離",1,null,5,3,3,3,3,null,"操縦士","搭乗員",11]
[null,null,null,"He219A_7R2",12,"Mosq. II NF","Mosq. II NF","Mosq. II NF","Mosq. II NF","Mosq. II NF","Mosq. II NF","Mosq. II NF","Mosq. II NF","Mosq. II NF","Mosq. XIX NF","Mosq. XIX NF","Mosq. XIX NF",null,null,null,null,6,7,8,13,13,null,"レーダー操作員","主レーダー",12]
[null,null,null,"He219A_7R3",null,null,null,null,null,null,null,null,null,null,null,null,null,null,null,null,null,7,7,8,0,0,null,"後方銃手／搭乗員","副レーダー",13]
[null,null,null,"He219A_7R4",null,null,null,null,null,null,null,null,null,null,null,null,null,null,null,"固定箇所命中修正",null,8,6,9,15,15,null,"翼（無作為）","追尾機器1",14]
[null,null,null,"Ju88C_6b",null,null,null,null,null,null,null,null,null,null,null,null,null,null,null,null,null,9,6,9,16,16,null,"左エンジン","追尾機器2(H2S用)",15]
[null,null,null,"Ju88C_6c",null,null,null,null,null,null,null,null,null,null,null,null,null,null,"照準技能",1,"照準先*2",10,5,5,17,17,null,"右エンジン","警報機器",16]
[null,null,null,"Ju88G_1",null,null,null,null,null,null,null,null,null,null,null,null,null,null,"斜め銃の技能",1,"燃料タンク",null,null,null,"*1",null,null,"爆弾倉","その他電子機器",17,null,null,null,null,"2d6　*3"]
[null,null,null,"Ju88G_6b",null,null,null,null,null,null,null,null,null,null,null,null,null,null,null,null,null,null,null,null,null,null,null,null,"前方銃１つ",18,null,null,null,null,null,null,"賽の目","負傷離脱ターン数",null,"負傷表示","文字数"]
[null,null,null,"Ju88R_1",null,null,null,null,null,null,null,null,null,null,null,null,null,null,null,null,null,"＜連続射撃＞",null,null,null,null,null,null,"前方銃全て",19,null,null,null,null,null,null,2,99,null,null,{"$f":"LEN(AN31)","v":0}]
[null,null,null,"Ta154A_1",null,null,null,null,null,null,null,null,null,null,null,null,null,null,"*1 爆弾倉爆発時に",null,null,null,"命中数","給弾不良数","幻惑状態",null,null,null,"斜め銃",20,null,null,null,null,null,null,3,40,null,"Light",{"$f":"LEN(AN32)","v":5}]
[null,null,null,null,null,null,null,null,null,null,null,null,null,null,null,null,null,null,"　2d6で２か１２なら自機が無作為命中を受ける。",null,null,{"$f":"E14","v":2},99,null,null,"目標破壊",null,null,"後方銃",21,null,null,null,null,null,null,4,32,null,"Retired",{"$f":"LEN(AN33)","v":7}]
[null,null,null,null,null,null,null,null,null,null,null,null,null,null,null,null,null,null,"　命中数は1d6で決める。",null,null,3,4,null,null,null,null,null,null,null,null,null,"*3  最初の迎撃3Box以内の場合",null,null,null,5,24,null,"Severe +",8]
[null,null,null,null,null,null,null,null,null,null,null,null,null,null,null,null,null,null,null,null,null,4,3,null,"有",null,null,null,null,null,null,null,null,null,null,null,6,8,null,"Killed",6]
[null,null,null,null,null,null,null,null,null,null,null,null,null,null,null,null,null,null,"*2　前方か後方機銃の場合のみ",null,null,5,2,null,null,null,null,null,"＜自機損傷＞",null,null,null,null,null,null,null,7,6]
[null,null,null,null,null,null,null,null,null,null,null,null,null,null,null,null,null,null,null,null,null,6,2,1,null,null,null,null,"左／右",1,2,3,4,5,6,null,8,5]
[null,null,null,null,null,null,null,null,null,null,null,null,null,null,null,null,null,null,null,null,null,7,1,null,null,null,null,null,1,11,8,7,13,6,12,null,9,4]
[null,null,null,null,null,null,null,null,null,null,null,null,null,null,null,null,null,null,null,null,null,8,1,4,null,"全火器給弾不良",null,null,2,1,6,0,1,4,20,null,10,3]
[null,null,null,null,null,null,null,null,null,null,null,null,null,null,null,null,null,null,null,null,null,9,1,1,"有",null,null,null,3,2,7,4,18,20,11,null,11,2]
[null,null,null,null,null,null,null,null,null,null,null,null,null,null,null,null,null,null,null,null,null,10,1,null,null,null,null,null,4,17,9,11,14,7,19,null,12,1]
[null,null,null,null,null,null,null,null,null,null,null,null,null,null,null,null,null,null,null,null,null,11,1,null,null,null,null,null,5,12,6,4,2,4,4]
[null,null,null,null,null,null,null,null,null,null,null,null,null,null,null,null,null,null,null,null,null,12,0,4,null,"全火器給弾不良",null,null,6,13,3,3,18,21,5]
[null,null,null,null,null,null,null,null,null,null,null,null,null,null,null,null,null,null,null,null,null,null,null,null,"注）He219は幻惑なし"]

{"sheet":"Type","index":4,"n_rows":34,"n_cols":33,"rows_kept":34,"cut":false,"hidden":false,"merged":[]}
["栄誉レベル",0,3,2,6,6,6,6,3,4,5,0,2,3,4,7,8,7,7,8,8,8,8,9,9,9,9,2,5,6,7,0,7]
["前方兵器数",3,2,2,2,2,2,2,2,2,2,2,2,2,2,2,3,2,2,2,2,2,2,3,3,3,2,2,2,1,1,2,2]
["１番目の火力",4,4,4,10,10,10,10,4,4,4,4,4,4,4,6,6,6,6,6,6,6,6,6,8,6,6,3,3,12,12,3,6]
["弾薬",99,99,99,4,4,4,4,99,99,99,99,99,99,99,6,6,6,6,6,6,6,6,6,3,6,6,99,99,5,5,99,6]
["給弾不良","有","有","有","有","有","有","有","有","有","有","有","有","有","有","有","有","有","有","有","有","有","有","有","有","有","有","有","有","有","有","有","有"]
["２番目の火力",4,6,6,6,6,6,6,6,6,6,4,8,12,12,6,6,10,10,10,6,10,10,10,10,6,6,9,9,12,12,9,10]
["弾薬",99,6,6,6,6,6,6,6,6,6,8,8,8,8,5,5,3,3,3,99,5,5,5,5,6,6,4,4,5,5,4,4]
["給弾不良","無","有","有","有","有","有","有","有","有","有","有","有","有","有","有","有","有","有","有","有","有","有","有","有","有","有","有","有","有","有","有","有"]
["３番目の火力",10,12,12,null,null,null,null,12,12,12,null,null,null,16,null,10,12,12,12,12,12,12,10,10,10,12,null,12]
["弾薬",3,3,3,null,null,null,null,3,3,3,null,null,null,5,null,5,3,3,3,3,3,3,3,3,3,3,null,5]
["給弾不良","有","有","有",null,null,null,null,"有","有","有",null,null,null,"有",null,"有","有","有","有","有","有","有","有","有","有","有",null,"有"]
["４番目の火力",null,null,null,null,null,null,null,null,null,null,null,null,null,null,null,null,null,null,null,null,null,null,12,12,12]
["弾薬",null,null,null,null,null,null,null,null,null,null,null,null,null,null,null,null,null,null,null,null,null,null,3,3,3]
["給弾不良",null,null,null,null,null,null,null,null,null,null,null,null,null,null,null,null,null,null,null,null,null,null,"有","有","有"]
["後方機銃","有","無","無","有","有","有","有","無","無","無","有","有","無","有","無","無","無","無","無","無","無","有","無","無","無","無","有","有","有","有","有","無"]
["斜め銃の配置番号",0,3,3,0,0,0,0,3,3,3,0,0,0,3,0,0,3,3,3,3,3,3,4,4,4,3,0,3,2,2,0,0]
["迎撃可能Box数",6,6,6,6,6,6,6,6,6,6,7,7,7,7,7,7,7,7,7,7,7,7,7,7,7,7,7,7,8,8,7,7]
["レーダー数",0,1,0,1,2,1,1,0,1,1,2,1,1,1,1,1,2,1,1,1,1,1,2,2,2,2,1,1,1,1,1,1]
["主レーダー補正",0,0,0,1,1,1,1,0,1,1,0,0,1,1,2,3,1,1,2,2,2,2,2,2,2,2,1,1,1,1,0,2]
["副レーダー補正",0,0,0,0,1,0,0,0,0,0,0,0,0,0,0,0,1,0,0,0,0,0,2,2,2,2,0,0,0,0,0,0]
["追尾機器1補正",0,0,0,0,0,0,1,0,0,1,0,0,0,1,0,0,0,0,0,0,0,0,0,0,0,0,0,1,1,1,0,0]
["追尾機器2補正",0,0,0,0,0,0,0,0,0,0,0,0,0,0,0,0,0,0,0,0,0,0,0,0,0,0,0,1,0,1,0,1]
["警報機器(SA補正)",0,0,0,0,0,0,0,0,0,0,0,0,0,0,1,2,0,0,0,0,0,0,1,1,1,1,0,0,0,1,0,0]
["その他電子機器数",0,0,0,1,1,1,1,1,1,1,0,0,1,1,1,1,1,1,1,1,1,1,1,1,1,1,0,0,1,1,0,1]
["H2S探知装置位置",0,0,0,0,0,0,0,0,0,0,0,0,0,0,0,0,0,0,0,0,0,0,0,0,0,0,0,2,0,2,0,1]
["追尾機器1期限（月行数）",null,null,null,null,null,null,90,null,null,50,null,null,null,90,null,null,null,null,null,null,null,null,null,null,null,null,null,90,90,90]
[]
[]
[]
["搭乗員",{"$f":"SUM(B31:B34)","v":3},{"$f":"SUM(C31:C34)","v":2},2,3,3,3,3,2,2,2,4,4,3,4,2,{"$f":"SUM(Q31:Q34)","v":2},2,{"$f":"SUM(S31:S34)","v":2},2,{"$f":"SUM(U31:U34)","v":2},2,3,{"$f":"SUM(X31:X34)","v":2},2,{"$f":"SUM(Z31:Z34)","v":2},2,3,{"$f":"SUM(AC31:AC34)","v":3},3,{"$f":"SUM(AE31:AE34)","v":3},3,2]
["操縦士",1,1,1,1,1,1,1,1,1,1,1,1,1,1,1,1,1,1,1,1,1,1,1,1,1,1,1,1,1,1,1,1]
["レーダー操作員",1,1,1,1,1,1,1,1,1,1,1,1,1,1,1,1,1,1,1,1,1,1,1,1,1,1,1,1,1,1,1,1]
["後方銃手",1,0,0,1,1,1,1,0,0,0,1,1,0,1,0,0,0,0,0,0,0,1,0,0,0,0,1,1,1,1,1,0]
["飛行整備士",0,0,0,0,0,0,0,0,0,0,1,1,1,1,0,0,0,0,0,0,0,0,0,0,0,0,0,0,0,0,0,0]

{"sheet":"Damage","index":5,"n_rows":45,"n_cols":15,"rows_kept":45,"cut":false,"hidden":false,"merged":[]}
[3,3,2,3,2,2,2,1,1,17]
[3,3,2,3,2,2,2,1,1,17]
[3,3,2,3,2,2,2,1,1,17]
[3,3,2,3,2,2,2,1,1,17]
[3,3,2,3,2,2,2,1,1,16]
[3,3,2,3,2,2,2,1,1,17]
[3,3,2,3,2,2,2,1,1,17]
[3,3,2,3,2,2,2,1,1,17]
[3,3,2,3,2,2,2,1,1,17]
[3,3,2,3,2,2,2,1,1,17]
[2,2,2,3,2,2,2,1,1,15]
[2,2,2,3,2,2,2,1,1,15]
[2,2,2,3,2,2,2,1,1,16]
[2,2,2,3,2,2,2,1,1,16]
[3,3,2,3,2,2,2,1,1,21]
[3,3,2,3,2,2,2,1,1,21]
[3,3,2,3,2,2,2,1,1,21]
[3,3,2,3,2,2,2,1,1,21]
[3,3,2,3,2,2,2,1,1,20]
[3,3,2,3,2,2,2,1,1,20]
[3,3,2,3,2,2,2,1,1,20]
[3,3,2,3,2,2,2,1,1,20]
[3,3,2,3,2,2,2,1,1,21]
[3,3,2,3,2,2,2,1,1,21]
[3,3,2,3,2,2,2,1,1,21]
[3,3,2,3,2,2,2,1,1,22]
[3,3,3,3,2,2,2,1,1,16]
[3,3,3,3,2,2,2,1,1,16]
[3,3,3,3,2,2,2,1,1,18]
[3,3,3,3,2,2,2,1,1,18]
[3,3,3,3,2,2,2,1,1,17]
[3,3,2,2,2,2,2,1,1,20]
["Pwing","Swing","Control","Airframe","Fuel Tank","Pengine","Sengine","Lnding gear","Oxygen","Speed"]
["Pwing","Swing","Control","Airframe","Fuel Tank","Engine1","Engine2","Engine3","Engine4","Speed","操縦士","レーダー操作員","後方銃手","火力","エンジン数"]
[3,3,3,4,2,2,2,2,2,14,null,null,1,null,4]
[3,3,3,4,2,2,2,2,2,14,null,null,1,null,4]
[3,3,3,5,2,2,2,2,2,14,null,null,1,null,4]
[3,3,3,5,2,2,2,2,2,14,null,null,1,null,4]
[3,3,3,4,2,2,2,2,2,13,null,null,1,null,4]
[3,3,3,4,2,2,2,2,2,13,null,null,1,null,4]
[3,3,3,4,2,2,2,null,null,12,null,null,1,null,2]
[4,4,4,5,2,2,2,2,2,15,null,null,1,null,4]
[2,2,2,3,2,2,2,null,null,18,1,1,null,12,2]
[2,2,2,3,2,2,2,null,null,18,1,1,null,null,2]
[2,2,2,3,2,2,2,null,null,18,1,1,null,12,2]

{"sheet":"Crew (2)","index":6,"n_rows":40,"n_cols":16,"rows_kept":40,"cut":false,"hidden":false,"merged":[]}
[]
[null,null,"任務中",null,null,null,null,"入院中"]
[null,null,"操縦士","レーダー操作員","後方銃手","飛行整備士",null,"レーダー操作員","後方銃手","飛行整備士",null,"現在の階級"]
[null,"搭乗員数"]
[null,"負傷離脱ターン数",null,null,null,null,null,null,null,null,null,"＜褒彰＞","4ヶ月後","８ヶ月後","１２ヶ月後","通期"]
["履歴","エースの地位",null,null,null,null,null,null,null,null,null,"戦傷章",null,null,null,{"$f":"SUM(M6:O6)","v":0}]
[null,"経験ポイント  *1",null,null,null,null,null,null,null,null,null,"前線飛行章",null,null,null,{"$f":"SUM(M7:O7)","v":0}]
[null,"栄誉ポイント",null,null,null,null,null,null,null,null,null,"２級鉄十字章",null,null,null,{"$f":"SUM(M8:O8)","v":0}]
[null,"栄誉レベル",null,null,null,null,null,null,null,null,null,"１級鉄十字章",null,null,null,{"$f":"SUM(M9:O9)","v":0}]
["技能","照準Aim",null,null,null,null,null,null,null,null,null,{"$f":"B6","v":"エースの地位"},null,null,null,{"$f":"SUM(M10:O10)","v":0}]
[null,"空中機動A.C.M",null,null,null,null,null,null,null,null,null,"十字金章",null,null,null,{"$f":"SUM(M11:O11)","v":0}]
[null,"爆撃機ストリームB.S.",null,null,null,null,null,null,null,null,null,"騎士十字章",null,null,null,0]
[null,"電子機器保守E.M.",null,null,null,null,null,null,null,null,null,"柏葉付き",null,null,null,0]
[null,"慣熟Expert",null,null,null,null,null,null,null,null,null,"剣付き",null,null,null,0]
[null,"射撃Gunnery",null,null,null,null,null,null,null,null,null,"宝剣付き",null,null,null,0]
[null,"着陸Landing"]
[null,"統率力Leadership"]
[null,"航法Navigation",null,null,null,null,null,null,null,null,null,"＜その他＞"]
[null,"落下傘Parachute",null,null,null,null,null,null,null,null,null,"撃墜数",null,null,null,{"$f":"SUM(M19:O19)","v":0}]
[null,"レーダー操作R.O.",null,null,null,null,null,null,null,null,null,"損失機数",null,null,null,0]
[null,"斜め銃射撃S.M.",null,null,null,null,null,null,null,null,null,"モスキートの撃墜",null,null,null,0]
[null,"状況認識S.A.",null,null,null,null,null,null,null,null,null,"B-17の撃墜",null,null,null,0]
[null,"兵器保守W.M."]
[null,null,null,null,null,null,null,null,null,null,null,"＜昇進＞"]
[null,"He219使用可能時期",null,null,null,null,null,null,null,null,null,"判定"]
[]
[null,null,null,null,"開始基地",null,null,null,null,null,null,"＜勝利条件＞　爆撃機の撃墜数で判定"]
[null,"慣熟機種",null,null,"使用可能機種",null,null,null,null,null,null,"０～４","敗北"]
[null,"Bf110",null,null,null,null,null,null,null,null,null,"５～１０","引き分け"]
[null,"Do215/217",null,null,null,null,null,null,null,null,null,"１１～３０","限定的勝利"]
[null,"He219",null,null,null,"　　",null,null,null,null,null,"３１～６０","実質的勝利"]
[null,"Ju88",null,null,null,null,null,null,null,null,null,"６１以上","決定的勝利"]
[]
[null,"*1 曹長なら新規の搭乗員は４経験ポイントをもつ（潤滑能力）。"]
[]
[]
[]
[]
[]
[null,null,"通常は使わない（テスト用）"]